bitfinex-derivatives/quotes_ETHF0:USTF0_20241229
["timestamp","ask_amount","ask_price","bid_price","bid_amount"]
[1735507718772,1.3045,3364.8,3364.7,1.36059789]
[1735507720274,3.50556,3365.3,3365.0,0.29778]
[1735507721966,3.2078,3365.3,3364.7,2.24340956]
[1735507722261,3.2078,3365.3,3365.0,0.29778]
[1735507722466,0.29777,3365.2,3364.9,0.29779]
[1735507723273,0.29776,3365.3,3364.8,0.2978]
[1735507723476,0.29776,3365.3,3365.0,0.29778]
[1735507723869,0.29776,3365.3,3364.8,0.2978]
[1735507724176,0.29776,3365.3,3365.0,0.29778]
[1735507724864,0.29777,3365.2,3365.0,0.29778]
[1735507725874,0.4263,3365.1,3365.0,0.29778]
[1735507731678,0.4263,3365.1,3364.7,2.24340956]
[1735507731882,0.4263,3365.1,3364.9,0.29779]
[1735507732973,0.72408,3365.1,3364.9,0.29779]
[1735507733583,0.72408,3365.1,3365.0,0.29778]
[1735507736077,0.72408,3365.1,3364.9,0.29779]
[1735507737182,0.4263,3365.1,3365.0,2.24340956]
[1735507737384,0.4263,3365.1,3365.0,2.54119956]
[1735507738783,0.4263,3365.1,3365.0,2.24340956]
[1735507739281,0.72408,3365.1,3365.0,2.54119956]
[1735507740276,0.72408,3365.1,3365.0,2.42163208]
[1735507740481,0.72408,3365.1,3365.0,2.12384208]
[1735507740680,0.72408,3365.1,3365.0,2.42163208]
[1735507742184,0.4263,3365.1,3365.0,2.42163208]
[1735507742574,0.72408,3365.1,3365.0,2.42163208]
[1735507743589,0.4263,3365.1,3365.0,2.42163208]
[1735507744685,0.72408,3365.1,3365.0,2.42163208]
[1735507745086,0.72408,3365.1,3365.0,2.12384208]
[1735507745386,0.72408,3365.1,3365.0,2.42163208]
[1735507745791,0.72408,3365.1,3365.0,2.12384208]
[1735507746190,0.72408,3365.1,3365.0,2.42163208]
[1735507747599,0.72408,3365.1,3365.0,2.12384208]
[1735507748997,0.72408,3365.1,3365.0,2.42163208]
[1735507749896,0.72408,3365.1,3365.0,2.12384208]
[1735507750094,0.4263,3365.1,3365.0,2.42163208]
[1735507750293,0.72408,3365.1,3365.0,2.12384208]
[1735507750493,0.72408,3365.1,3365.0,2.42163208]
[1735507751388,0.72408,3365.1,3365.0,7.05251059]
[1735507752795,0.72408,3365.1,3365.0,4.92866851]
[1735507753100,0.72408,3365.1,3365.0,6.75472059]
[1735507754299,0.72408,3365.1,3365.0,7.05251059]
[1735507754497,0.72408,3365.1,3365.0,6.75472059]
[1735507755497,0.72408,3365.1,3365.0,7.05251059]
[1735507755901,0.4263,3365.1,3365.0,7.05251059]
[1735507757097,0.4263,3365.1,3365.0,13.86422363]
[1735507760396,0.72408,3365.1,3365.0,13.56643363]
[1735507761606,0.72408,3365.1,3365.0,15.89821289]
[1735507762009,0.72408,3365.1,3365.0,16.19600289]
[1735507763007,0.72408,3365.1,3365.0,25.18131564]
[1735507764917,0.72408,3365.1,3365.0,15.89141272]
[1735507765415,0.4263,3365.1,3365.0,15.89141272]
[1735507766417,0.4263,3365.1,3365.0,27.50379137]
[1735507767517,0.4263,3365.1,3365.0,27.20600137]
[1735507767711,0.72408,3365.1,3365.0,27.50379137]
[1735507768314,0.4263,3365.1,3365.0,27.50379137]
[1735507770025,0.4263,3365.1,3365.0,15.89141272]
[1735507772920,0.4263,3365.1,3365.0,27.51602444]
[1735507773124,0.72408,3365.1,3365.0,27.21823444]
[1735507779023,0.72408,3365.1,3365.0,25.09439236]
[1735507780530,0.72408,3365.1,3365.0,4.48446789]
[1735507780738,0.72408,3365.1,3365.0,1.69646789]
[1735507780925,0.72408,3365.1,3365.0,0.99936789]
[1735507781232,0.29779,3365.0,3364.9,5.79059405]
[1735507781425,0.29779,3365.0,3364.9,4.00079405]
[1735507781630,5.29779,3365.0,3364.9,4.00079405]
[1735507782528,6.19134191,3365.0,3364.7,4.65036592]
[1735507783632,1.19134191,3365.0,3364.7,4.65036592]
[1735507784034,6.19134191,3365.0,3364.7,4.65036592]
[1735507784334,0.29781,3364.8,3364.7,4.65036592]
[1735507784531,3.51307435,3364.9,3364.6,5.71228696]
[1735507784733,0.29782,3364.7,3364.6,4.65036592]
[1735507784930,1.35974104,3364.7,3364.6,4.65036592]
[1735507786146,0.29784,3364.4,3364.3,4.65036592]
[1735507786642,3.50564,3364.4,3364.3,4.65036592]
[1735507787241,0.29786,3364.2,3364.1,5.71228696]
[1735507788639,0.29786,3364.2,3364.1,1.06192104]
[1735507795140,0.29788,3364.0,3363.9,4.65036592]
[1735507795337,0.29788,3364.0,3363.9,5.71228696]
[1735507796040,0.29788,3364.0,3363.9,1.06192104]
[1735507802146,0.29789,3363.9,3363.8,1.2959]
[1735507803450,1.06192104,3363.9,3363.7,4.65036592]
[1735507803754,1.06192104,3363.9,3362.3,0.24307199]
[1735507803755,9.26972104,3363.9,3363.4,1.2869]
[1735507803955,0.29792,3363.5,3363.4,1.2869]
[1735507806646,3.50572,3363.5,3363.4,1.2869]
[1735507807048,4.26972104,3363.5,3362.8,4.65036592]
[1735507807256,1.35987104,3363.2,3363.1,0.4543]
[1735507807959,0.29795,3363.2,3363.1,0.4543]
[1735507810255,3.2078,3363.5,3363.1,1.51622104]
[1735507810451,1.174,3364.1,3363.4,4.26972104]
[1735507810655,1.174,3364.1,3363.1,0.4543]
[1735507810656,0.2979,3363.8,3363.6,1.06192104]
[1735507810853,0.2979,3363.8,3363.7,3.6634]
[1735507812254,0.29789,3364.0,3363.7,3.96131]
[1735507812459,0.29789,3364.0,3363.9,1.06192104]
[1735507812848,0.29788,3364.1,3363.9,1.06192104]
[1735507813371,0.29788,3364.1,3363.9,2.92182104]
[1735507813561,0.29788,3364.1,3364.0,0.9169]
[1735507813858,1.35980104,3364.1,3364.0,0.9169]
[1735507814358,1.35980104,3364.1,3364.0,0.4756]
[1735507814957,1.78900104,3364.1,3364.0,0.684]
[1735507815362,1.78900104,3364.1,3364.0,3.1541]
[1735507816263,2.97330073,3364.1,3364.0,3.1541]
[1735507818062,6.18110073,3364.1,3364.0,3.1541]
[1735507820759,3.93488,3364.1,3364.0,3.1541]
[1735507824065,6.26804134,3364.1,3364.0,3.1541]
[1735507824970,3.06024134,3364.1,3364.0,3.1541]
[1735507825282,6.26804134,3364.1,3364.0,3.1541]
[1735507825571,6.18110073,3364.1,3364.0,3.1541]
[1735507826862,10.14122386,3364.1,3364.0,3.1541]
[1735507831580,6.62814951,3364.1,3364.0,3.1541]
[1735507831776,3.42034951,3364.1,3364.0,3.1541]
[1735507832078,6.62814951,3364.1,3364.0,3.1541]
[1735507835068,3.42034951,3364.1,3364.0,3.1541]
[1735507835276,6.19894951,3364.1,3364.0,3.1541]
[1735507836475,5.0159663,3364.1,3364.0,3.1541]
[1735507837475,8.52446077,3364.1,3364.0,3.1541]
[1735507838675,5.0159663,3364.1,3364.0,3.1541]
[1735507842072,1.8081663,3364.1,3364.0,3.1541]
[1735507842270,5.0159663,3364.1,3364.0,3.1541]
[1735507842471,5.29536426,3364.1,3364.0,3.1541]
[1735507842678,5.29536426,3364.1,3364.0,5.0138]
[1735507843182,9.9547074,3364.1,3364.0,5.0138]
[1735507846178,9.77644351,3364.1,3364.0,5.0138]
[1735507847373,5.29536426,3364.1,3364.0,5.0138]
[1735507848080,5.29535519,3364.1,3364.0,5.0138]
[1735507848674,6.1899663,3364.1,3364.0,5.0138]
[1735507849780,10.87541475,3364.1,3364.0,5.0138]
[1735507850480,9.81217723,3364.1,3364.0,5.0138]
[1735507850681,8.63817723,3364.1,3364.0,5.0138]
[1735507850874,5.43037723,3364.1,3364.0,5.0138]
[1735507851380,4.73327723,3364.1,3364.0,6.07703752]
[1735507851581,5.03115723,3364.1,3364.0,6.07703752]
[1735507851879,0.34570878,3364.1,3364.0,6.07703752]
[1735507852778,0.29788,3364.1,3364.0,6.07703752]
[1735507853179,0.29788,3364.1,3364.0,10.50116114]
[1735507854278,0.29788,3364.1,3364.0,9.43792362]
[1735507855987,0.29788,3364.1,3364.0,5.0138]
[1735507862189,0.29788,3364.1,3364.0,9.66749727]
[1735507863590,0.29788,3364.1,3364.0,5.0138]
[1735507867281,0.29788,3364.1,3364.0,6.07703752]
[1735507868005,0.29788,3364.1,3364.0,10.73073479]
[1735507868996,0.29788,3364.1,3364.0,9.66749727]
[1735507869292,0.29788,3364.1,3364.0,10.73073479]
[1735507869488,0.29788,3364.1,3364.0,9.66749727]
[1735507870295,0.29788,3364.1,3364.0,10.73073479]
[1735507870488,3.2078,3364.3,3364.0,10.73073479]
[1735507870689,3.2078,3364.3,3364.2,1.06323752]
[1735507871993,3.2078,3364.3,3364.2,1.74613752]
[1735507872195,3.50566,3364.3,3364.2,1.74613752]
[1735507872591,0.29786,3364.3,3364.2,2.63123752]
[1735507874992,1.6205,3364.6,3364.2,2.63123752]
[1735507875194,2.33964629,3364.6,3364.5,1.06323752]
[1735507875407,3.50946943,3364.8,3364.7,0.29783]
[1735507875698,3.50946943,3364.8,3364.7,1.36106752]
[1735507876092,0.94281572,3364.8,3364.7,1.36106752]
[1735507876296,0.24571572,3364.8,3364.7,1.36106752]
[1735507877188,0.29779,3365.1,3364.8,0.29781]
[1735507877491,0.29779,3365.1,3364.7,5.61516871]
[1735507877492,3.2078,3365.3,3365.0,1.06323752]
[1735507877697,3.50558,3365.3,3365.2,1.06323752]
[1735507878004,0.4578,3365.7,3365.2,1.06323752]
[1735507878203,0.4578,3365.7,3365.6,1.06323752]
[1735507878402,0.75554,3365.7,3365.6,1.06323752]
[1735507879403,0.29774,3365.7,3365.6,1.06323752]
[1735507880201,0.4389,3365.9,3365.6,1.36097752]
[1735507880403,0.4389,3365.9,3365.8,1.06323752]
[1735507880712,0.29772,3366.0,3365.8,1.06323752]
[1735507881000,0.29772,3366.0,3365.9,0.4309]
[1735507881199,4.63761948,3366.2,3365.9,0.4309]
[1735507881400,0.29771,3366.1,3365.9,0.4309]
[1735507881792,4.63761948,3366.2,3365.9,0.4309]
[1735507882303,4.67929258,3367.1,3365.9,8.6387]
[1735507882495,5.40381258,3367.1,3366.6,0.29766]
[1735507882798,5.40380258,3367.1,3366.8,2.24089858]
[1735507882999,5.10619258,3367.1,3366.8,2.24089858]
[1735507883397,5.10619258,3367.1,3366.9,3.50543]
[1735507883398,4.67929258,3367.1,3366.9,3.50543]
[1735507883599,4.67929258,3367.1,3366.9,3.2078]
[1735507884003,4.67929258,3367.1,3367.0,0.2069]
[1735507884398,0.29759,3367.4,3367.0,0.2069]
[1735507885105,0.29761,3367.2,3367.0,0.2069]
[1735507885495,0.4269,3367.6,3367.0,2.0645]
[1735507885695,0.29761,3367.1,3367.0,2.0645]
[1735507887401,0.29761,3367.2,3367.0,2.0645]
[1735507887792,0.29761,3367.2,3367.1,2.24089858]
[1735507887995,0.4269,3367.6,3367.1,2.24089858]
[1735507888202,0.29758,3367.5,3367.1,2.24089858]
[1735507888598,0.2976,3367.3,3367.1,2.24089858]
[1735507889298,0.29759,3367.4,3367.1,4.82999858]
[1735507889906,0.4269,3367.6,3367.1,4.82999858]
[1735507890098,0.29758,3367.5,3367.1,4.82999858]
[1735507890296,0.4269,3367.6,3367.4,2.24089858]
[1735507892301,3.2078,3367.8,3367.4,2.53848858]
[1735507892497,3.2078,3367.8,3367.5,0.4393]
[1735507892498,3.50536,3367.8,3367.5,0.4393]
[1735507893209,0.29756,3367.7,3367.5,0.4393]
[1735507893703,0.29746,3368.9,3368.4,0.29749]
[1735507893900,0.29745,3369.0,3368.8,2.24089858]
[1735507894100,0.4182,3369.1,3368.8,2.24089858]
[1735507894101,0.4182,3369.1,3368.9,3.2078]
[1735507894304,0.29745,3369.0,3368.9,3.2078]
[1735507894607,0.71564,3369.1,3368.9,3.2078]
[1735507894809,0.29745,3369.0,3368.9,3.2078]
[1735507895015,0.4182,3369.1,3368.9,3.2078]
[1735507895507,0.71564,3369.1,3368.9,3.2078]
[1735507895810,0.4182,3369.1,3368.9,3.2078]
[1735507896404,0.4182,3369.6,3369.1,0.29743]
[1735507896708,0.71559,3369.6,3369.4,2.24089858]
[1735507897210,0.4182,3369.6,3369.4,2.24089858]
[1735507897509,0.7156,3369.6,3369.4,2.24089858]
[1735507897708,0.2974,3369.5,3369.4,2.24089858]
[1735507897903,0.4182,3369.6,3368.9,3.6515]
[1735507897904,0.4182,3369.6,3369.1,2.24089858]
[1735507898104,0.29742,3369.3,3369.1,2.24089858]
[1735507898403,0.29741,3369.5,3369.1,2.24089858]
[1735507898602,0.29741,3369.5,3369.4,3.2078]
[1735507900003,0.29742,3369.3,3369.1,2.24089858]
[1735507900605,0.29742,3369.4,3369.1,2.24089858]
[1735507901010,0.29742,3369.3,3369.1,2.47829858]
[1735507901210,0.29742,3369.3,3369.2,2.24089858]
[1735507902113,0.29742,3369.3,3369.2,2.47829858]
[1735507904811,0.29742,3369.3,3369.2,0.2374]
[1735507905015,0.29743,3369.2,3369.1,0.2374]
[1735507905216,0.2975,3368.4,3368.3,2.24089858]
[1735507906113,0.2975,3368.4,3368.3,0.2375]
[1735507906420,0.2975,3368.4,3368.3,0.475]
[1735507906622,0.2975,3368.4,3368.3,3.0552]
[1735507907714,0.2975,3368.4,3368.3,2.8177]
[1735507907922,0.2975,3368.4,3368.3,0.9657]
[1735507909017,0.2975,3368.4,3368.3,1.4407]
[1735507909214,0.2975,3368.4,3368.3,1.6457]
[1735507909721,0.2975,3368.4,3368.3,3.5019]
[1735507910119,3.2078,3368.8,3368.3,5.74279858]
[1735507910319,0.29745,3369.0,3368.6,3.2078]
[1735507910621,0.4325,3369.1,3368.3,8.95059858]
[1735507910815,0.29748,3368.7,3368.3,8.95059858]
[1735507911216,0.29747,3368.8,3368.3,9.24810858]
[1735507911416,0.29747,3368.7,3368.3,8.95059858]
[1735507912620,0.29748,3368.6,3368.3,8.95059858]
[1735507913122,0.00298019,3368.4,3368.3,8.95059858]
[1735507915120,0.30048019,3368.4,3368.3,8.95059858]
[1735507916725,0.30048019,3368.4,3368.3,5.74279858]
[1735507917225,0.30048019,3368.4,3368.3,8.95059858]
[1735507918424,0.30048019,3368.4,3368.3,6.7097]
[1735507927627,0.30048019,3368.4,3368.3,3.5019]
[1735507929624,1.64518019,3368.4,3368.3,3.5019]
[1735507929818,1.64518019,3368.4,3368.3,2.5362]
[1735507930029,1.64518019,3368.4,3368.3,1.623]
[1735507930629,6.64518019,3368.4,3368.3,0.33043]
[1735507930833,6.34768019,3368.4,3367.4,3.6515]
[1735507931136,0.29758,3367.5,3367.4,3.6515]
[1735507931322,0.74389,3367.8,3367.4,3.6515]
[1735507931525,0.29757,3367.6,3367.5,0.054]
[1735507932527,0.29757,3367.6,3367.5,0.1462]
[1735507934634,1.46957,3367.6,3367.5,0.1462]
[1735507938534,4.67737,3367.6,3367.5,0.1462]
[1735507944232,4.67737,3367.6,3367.5,0.0922]
[1735507944536,0.29763,3366.9,3366.8,0.4249]
[1735507944735,3.50543,3366.9,3366.8,0.4249]
[1735507946839,0.29768,3366.4,3366.0,3.93231]
[1735507947035,0.29768,3366.4,3366.2,0.4476]
[1735507948742,0.29769,3366.3,3366.2,0.4476]
[1735507949041,4.3798,3366.9,3366.2,0.4476]
[1735507949230,3.2078,3367.3,3366.7,2.24089858]
[1735507949543,0.29764,3366.9,3366.8,0.8821]
[1735507950245,3.2078,3367.3,3366.8,0.8821]
[1735507950540,0.29764,3366.9,3366.8,0.8821]
[1735507951145,3.2078,3367.3,3366.8,0.8821]
[1735507951336,0.29763,3367.0,3366.8,0.8821]
[1735507951537,0.29764,3366.9,3366.8,0.8821]
[1735507954045,3.2078,3367.3,3366.8,0.8821]
[1735507954345,0.29764,3366.9,3366.8,0.8821]
[1735507955143,0.29762,3367.2,3366.8,4.38754]
[1735507955342,3.5054,3367.3,3366.9,2.66699858]
[1735507955646,0.29761,3367.2,3366.9,2.96462858]
[1735507956048,0.29762,3367.1,3366.9,2.96462858]
[1735507956749,0.74391,3367.8,3366.9,2.66699858]
[1735507957046,0.29763,3367.0,3366.9,2.66699858]
[1735507957245,0.74394,3367.6,3366.9,2.66699858]
[1735507957845,0.29763,3367.0,3366.9,0.4261]
[1735507960248,0.29763,3367.0,3366.9,3.6339]
[1735507960749,0.29763,3367.0,3366.9,0.4261]
[1735507964051,0.29763,3367.0,3366.8,0.8821]
[1735507964052,0.29765,3366.7,3366.6,7.83942539]
[1735507964847,0.29765,3366.7,3366.6,4.63162539]
[1735507965445,4.5338,3366.9,3366.3,0.431]
[1735507965446,0.29768,3366.4,3366.3,0.431]
[1735507967547,3.41389858,3366.4,3365.7,3.2078]
[1735507967745,3.41389858,3366.4,3364.2,23.13782719]
[1735507967746,0.29774,3365.7,3365.6,0.4502]
[1735507967944,0.29779,3365.1,3365.0,3.2078]
[1735507968844,0.8509,3365.6,3365.0,3.2078]
[1735507969150,0.29779,3365.2,3365.0,3.2078]
[1735507969348,0.8509,3365.6,3365.0,3.2078]
[1735507969742,0.29779,3365.2,3365.0,3.2078]
[1735507970143,0.8509,3365.6,3365.0,3.2078]
[1735507970350,0.29779,3365.1,3365.0,3.2078]
[1735507971139,3.2078,3365.5,3365.0,3.2078]
[1735507971647,0.29779,3365.2,3365.0,3.2078]
[1735507972043,3.2078,3365.5,3365.0,3.2078]
[1735507972245,0.29779,3365.2,3365.0,3.2078]
[1735507974169,3.2078,3365.5,3365.0,3.2078]
[1735507974354,0.29779,3365.2,3365.0,3.2078]
[1735507974753,0.29779,3365.2,3364.9,0.9018]
[1735507974957,3.2078,3365.5,3364.9,0.9018]
[1735507975154,0.2978,3365.1,3364.9,0.9018]
[1735507975655,3.2078,3365.5,3364.9,0.9018]
[1735507975853,0.2978,3365.0,3364.9,0.9018]
[1735507981552,3.2078,3365.5,3364.9,0.9018]
[1735507981760,0.29777,3365.4,3365.1,2.53868858]
[1735507982753,0.29778,3365.3,3365.1,2.24089858]
[1735507983059,3.2078,3365.5,3364.9,0.9018]
[1735507983453,0.29777,3365.4,3365.1,0.29779]
[1735507983648,0.29778,3365.3,3365.1,0.29779]
[1735507984461,0.29779,3365.2,3365.1,0.29779]
[1735507984662,0.29779,3365.2,3365.0,0.2978]
[1735507984956,0.2978,3365.0,3364.9,1.19961]
[1735507985858,0.2978,3365.0,3364.9,0.4502]
[1735507987066,0.2978,3365.0,3364.9,0.74801]
[1735507987454,4.0587,3365.6,3364.9,0.4502]
[1735507987658,0.29779,3365.2,3364.9,0.4502]
[1735507987859,0.2978,3365.1,3365.0,0.2978]
[1735507989463,4.0587,3365.6,3364.9,0.4502]
[1735507989764,0.2978,3365.1,3365.0,0.2978]
[1735507990659,0.29779,3365.2,3365.1,0.29779]
[1735507991167,0.29779,3365.2,3365.1,3.50559]
[1735507991364,3.95203,3366.3,3365.2,0.74447]
[1735507991554,0.29771,3366.2,3366.0,0.29771]
[1735507991774,0.845,3366.7,3366.1,4.0762]
[1735507991961,0.29768,3366.5,3366.4,0.29768]
[1735507993060,0.845,3366.7,3366.3,0.29768]
[1735507993274,0.29768,3366.4,3366.3,0.29768]
[1735507994072,0.845,3366.7,3366.1,4.0762]
[1735507994266,0.29768,3366.5,3366.1,4.0762]
[1735507994469,0.845,3366.7,3366.1,4.0762]
[1735507994772,0.29769,3366.4,3366.3,0.29769]
[1735507995164,0.845,3366.7,3366.3,0.29769]
[1735507995470,0.29768,3366.4,3366.3,0.29769]
[1735507995660,0.29768,3366.5,3366.3,0.29768]
[1735507995863,3.2078,3366.9,3366.3,2.24089858]
[1735507996167,0.29765,3366.8,3366.7,0.29765]
[1735507996472,0.29765,3366.8,3366.7,0.75405]
[1735507996671,0.29765,3366.8,3366.7,0.4564]
[1735507996968,4.1039,3367.3,3366.7,0.4564]
[1735507997170,3.2078,3367.3,3367.0,2.24089858]
[1735507997466,3.2078,3367.3,3367.2,0.29761]
[1735507997671,3.5054,3367.3,3367.1,0.29761]
[1735507998565,3.5054,3367.3,3367.0,2.24089858]
[1735507998762,0.2976,3367.3,3367.1,0.29761]
[1735507999161,0.2976,3367.3,3367.0,2.24089858]
[1735507999364,0.2976,3367.3,3367.1,0.29762]
[1735508001073,0.2976,3367.3,3367.2,0.29761]
[1735508001279,0.29759,3367.4,3367.2,0.29761]
[1735508001868,0.29759,3367.4,3367.3,0.4612]
[1735508009077,0.4453,3367.5,3367.1,3.50541]
[1735508009287,0.29761,3367.2,3367.1,3.50541]
[1735508010571,0.29762,3367.1,3367.0,2.53851858]
[1735508010774,0.29762,3367.1,3367.0,3.2078]
[1735508012774,0.74401,3367.3,3366.6,0.4436]
[1735508012981,0.29768,3366.4,3366.3,4.6393519]
[1735508013178,0.74414,3366.7,3366.1,10.54845048]
[1735508013380,0.2977,3366.2,3366.1,10.54845048]
[1735508013686,0.2977,3366.2,3366.1,8.3075519]
[1735508014281,0.2977,3366.2,3366.1,8.6052619]
[1735508014683,0.2977,3366.2,3366.1,3.96591]
[1735508017184,0.8815,3366.3,3366.1,3.6682]
[1735508017585,0.2977,3366.2,3366.1,3.6682]
[1735508019292,0.2977,3366.2,3366.1,3.96591]
[1735508019786,0.8815,3366.3,3366.1,3.6682]
[1735508019980,0.8815,3366.3,3366.2,0.2977]
[1735508020188,0.29768,3366.5,3366.1,5.90909858]
[1735508020385,0.29769,3366.4,3366.3,0.29769]
[1735508022987,0.29768,3366.4,3366.3,0.29769]
[1735508023484,0.29769,3366.3,3366.2,0.2977]
[1735508024289,3.10829858,3366.7,3366.1,3.2078]
[1735508024593,0.2977,3366.2,3366.1,3.2078]
[1735508024791,0.2977,3366.2,3366.1,3.50551]
[1735508027098,0.29768,3366.4,3366.3,0.29769]
[1735508027393,0.29769,3366.4,3366.3,0.29769]
[1735508029193,0.8674,3366.7,3366.2,0.9079]
[1735508029491,0.29769,3366.4,3366.3,0.29769]
[1735508030493,0.29767,3366.6,3366.5,0.29767]
[1735508030999,0.29768,3366.5,3366.4,0.29768]
[1735508031302,0.29769,3366.4,3366.3,0.29768]
[1735508031596,0.29769,3366.3,3366.2,0.4569]
[1735508031899,1.61156,3366.7,3366.1,8.1448519]
[1735508032088,0.2977,3366.2,3366.1,8.1448519]
[1735508033398,0.2977,3366.2,3366.1,3.5055]
[1735508033899,0.2977,3366.2,3366.1,0.2977]
[1735508034193,0.2977,3366.2,3366.1,3.5055]
[1735508036796,0.2977,3366.2,3366.1,3.2078]
[1735508037096,0.8674,3366.7,3366.1,5.44869858]
[1735508037298,0.29765,3366.8,3366.5,0.29767]
[1735508037500,0.29765,3366.8,3366.7,0.29765]
[1735508038203,3.2078,3367.1,3366.6,0.8824]
[1735508038399,0.29765,3366.7,3366.6,1.18006]
[1735508038900,0.29765,3366.7,3366.6,8.13908785]
[1735508040094,0.29765,3366.7,3366.6,5.72136438]
[1735508040299,3.2078,3367.1,3366.6,5.42370438]
[1735508040499,0.4435,3367.2,3366.8,3.2078]
[1735508040699,0.29763,3367.0,3366.9,0.29763]
[1735508041197,0.4435,3367.2,3366.8,3.2078]
[1735508041398,0.4435,3367.2,3366.8,3.50544]
[1735508041399,0.29764,3366.9,3366.8,3.50544]
[1735508041601,0.29764,3366.9,3366.8,3.2078]
[1735508041805,0.29764,3366.9,3366.8,3.50545]
[1735508042302,0.4435,3367.2,3366.7,4.63476212]
[1735508042506,0.29765,3366.8,3366.7,7.25667785]
[1735508043003,0.29765,3366.8,3366.7,10.46447785]
[1735508043698,0.4435,3367.2,3366.7,10.16682785]
[1735508043898,0.29763,3367.0,3366.9,0.29763]
[1735508045608,0.29763,3367.0,3366.9,4.92986206]
[1735508046499,0.29763,3367.0,3366.9,4.63223206]
[1735508047202,0.29763,3367.0,3366.9,9.17040452]
[1735508048203,0.4562,3367.1,3366.8,4.63223206]
[1735508048401,0.29763,3366.9,3366.8,4.63223206]
[1735508051911,0.29763,3366.9,3366.7,10.46447785]
[1735508051912,0.29764,3366.8,3366.7,4.92988206]
[1735508052907,0.29764,3366.9,3366.8,0.29764]
[1735508053105,0.29763,3367.0,3366.9,0.29763]
[1735508053809,0.4399,3367.3,3366.8,0.4552]
[1735508054014,0.29763,3366.9,3366.8,0.4552]
[1735508054616,0.29764,3366.8,3366.7,11.49872137]
[1735508054808,0.71934,3366.8,3366.7,11.49872137]
[1735508055313,0.71934,3366.8,3366.7,9.2787038]
[1735508056218,0.71934,3366.8,3366.7,4.54050347]
[1735508057706,0.71934,3366.8,3366.7,13.81920727]
[1735508059414,0.71934,3366.8,3366.7,4.54050347]
[1735508060117,0.00210164,3366.8,3366.7,4.83815347]
[1735508060420,0.00210164,3366.8,3366.7,7.96805205]
[1735508060615,0.2976,3367.3,3367.2,0.2976]
[1735508060923,2.62479062,3367.3,3367.2,0.2976]
[1735508061116,2.32719062,3367.3,3367.2,0.2976]
[1735508061617,0.4229,3367.7,3367.0,2.24089858]
[1735508061824,0.29758,3367.6,3367.5,0.29757]
[1735508062717,3.2078,3367.9,3367.3,2.24089858]
[1735508062915,3.2078,3367.9,3367.8,0.29755]
[1735508063119,3.2078,3367.9,3367.4,0.8468]
[1735508063320,3.2078,3367.9,3367.4,0.4216]
[1735508063621,0.8891,3368.3,3368.0,0.29753]
[1735508063622,0.29753,3368.1,3368.0,0.29753]
[1735508063816,0.29752,3368.2,3368.1,0.29753]
[1735508064118,0.8891,3368.3,3367.9,0.29754]
[1735508064321,0.29754,3368.0,3367.9,0.29754]
[1735508064519,0.29754,3368.0,3367.8,0.29755]
[1735508064920,0.29754,3368.0,3367.9,0.29754]
[1735508065227,0.29754,3368.0,3367.9,3.50534]
[1735508065819,0.29754,3368.0,3367.9,3.2078]
[1735508066725,0.29754,3368.0,3367.9,7.74536311]
[1735508068024,0.29754,3368.0,3367.9,3.2078]
[1735508071128,2.07158,3368.3,3367.6,3.2078]
[1735508071325,0.29756,3367.7,3367.6,3.2078]
[1735508072727,0.29757,3367.6,3367.5,4.62121488]
[1735508073221,0.29755,3367.9,3367.6,0.29757]
[1735508073426,0.29754,3368.0,3367.8,0.29755]
[1735508073625,1.3278,3368.3,3367.7,0.4568]
[1735508073927,0.29754,3368.1,3367.9,0.29754]
[1735508074325,0.29752,3368.2,3368.0,0.29754]
[1735508074521,5.54586417,3368.8,3368.1,2.24089858]
[1735508074727,5.54586417,3368.8,3368.4,0.2975]
[1735508074728,0.29748,3368.7,3368.4,0.2975]
[1735508074933,5.54586417,3368.8,3368.1,2.68659858]
[1735508075125,0.29749,3368.6,3368.3,0.29751]
[1735508075327,0.29749,3368.6,3368.4,0.4262]
[1735508075530,0.29749,3368.6,3368.4,0.883]
[1735508075826,0.2975,3368.5,3368.4,0.883]
[1735508079034,0.2975,3368.5,3368.4,0.4568]
[1735508079831,0.29752,3368.2,3368.1,0.4531]
[1735508080024,0.29752,3368.2,3368.1,0.8765]
[1735508080427,1.18993,3368.6,3368.0,4.62121488]
[1735508080627,0.74377,3368.4,3367.9,7.82901488]
[1735508080826,0.29754,3368.0,3367.9,7.82901488]
[1735508082527,0.29754,3368.0,3367.9,3.2078]
[1735508082928,0.29757,3367.7,3367.6,4.62121488]
[1735508083731,0.4485,3367.9,3367.2,3.2078]
[1735508083732,0.2976,3367.3,3367.2,3.2078]
[1735508085430,4.0921,3367.6,3367.0,4.62169735]
[1735508085626,2.24089858,3367.5,3367.0,4.62169735]
[1735508085833,0.29762,3367.1,3367.0,4.62169735]
[1735508086734,0.29764,3366.9,3366.8,8.72549735]
[1735508087327,0.29764,3366.9,3366.8,7.82949735]
[1735508088230,0.29764,3366.9,3366.8,3.2078]
[1735508088634,0.29765,3366.8,3366.7,4.92520592]
[1735508096140,0.29763,3367.1,3366.7,4.92520592]
[1735508096343,3.2078,3367.3,3366.7,4.92520592]
[1735508096537,0.29764,3366.9,3366.8,0.29764]
[1735508096938,0.29765,3366.8,3366.7,5.22285592]
[1735508097945,0.29765,3366.8,3366.7,4.92520592]
[1735508098947,3.43975858,3367.2,3366.5,3.50547]
[1735508099245,0.29767,3366.6,3366.5,3.50547]
[1735508101047,0.29767,3366.6,3366.5,0.29767]
[1735508101643,0.29767,3366.6,3366.5,3.50547]
[1735508102045,0.29766,3366.7,3366.6,0.29766]
[1735508103651,0.4548,3367.2,3366.5,3.2078]
[1735508103840,3.2078,3367.3,3366.5,3.2078]
[1735508104244,0.29764,3367.0,3366.9,0.29763]
[1735508104447,0.29764,3367.0,3366.5,3.2078]
[1735508104448,0.29763,3367.1,3367.0,0.29763]
[1735508105953,3.2078,3367.3,3366.6,4.62637364]